bitfinex/quotes_SOLUSD_20250429
["timestamp","ask_amount","ask_price","bid_price","bid_amount"]
[1745949049608,1e-08,149.12,149.11,109.89038233]
[1745949049812,1e-08,149.12,149.11,109.60605919]
[1745949050033,1e-08,149.12,149.11,109.89038233]
[1745949050618,1e-08,149.12,149.11,135.89038233]
[1745949050823,1e-08,149.12,149.11,4.94715585]
[1745949051135,15.1681219,149.12,149.11,26.0]
[1745949051652,1e-08,149.12,149.11,26.0]
[1745949052127,1e-08,149.12,149.11,26.28432314]
[1745949052329,1e-08,149.12,149.11,32.99078145]
[1745949052830,1e-08,149.12,149.11,26.28432314]
[1745949053031,1e-08,149.12,149.11,0.28432314]
[1745949054313,1e-08,149.12,149.11,7.27510459]
[1745949054518,1e-08,149.12,149.11,48.44322648]
[1745949055630,1e-08,149.12,149.11,53.36821978]
[1745949056539,1e-08,149.12,149.11,38.20009789]
[1745949056851,1e-08,149.12,149.11,53.36821978]
[1745949057860,1e-08,149.12,149.11,38.20009789]
[1745949058233,1e-08,149.12,149.11,12.20009789]
[1745949058534,1e-08,149.12,149.11,5.20931644]
[1745949058743,1e-08,149.12,149.11,0.28432314]
[1745949058926,15.1681219,149.12,149.11,0.14216157]
[1745949059126,1e-08,149.12,149.11,0.14216157]
[1745949059429,15.1681219,149.12,149.09,32.70734936]
[1745949060047,15.1681219,149.12,149.1,0.14216157]
[1745949060359,15.1681219,149.12,149.1,0.28432314]
[1745949060648,15.1681219,149.12,149.07,13.38]
[1745949060649,15.16812189,149.11,149.07,39.38]
[1745949060823,15.16812189,149.09,149.08,0.28432314]
[1745949061026,15.16812189,149.09,149.06,6.8505646]
[1745949061426,15.16812189,149.09,149.07,0.42648471]
[1745949061634,15.16812189,149.09,149.06,6.8505646]
[1745949062032,15.16812189,149.09,149.07,0.14216157]
[1745949062435,15.16812189,149.09,149.08,0.14216157]
[1745949064829,15.16812189,149.09,149.07,6.7082398]
[1745949065035,15.16812189,149.09,149.08,0.28432314]
[1745949065239,15.16812189,149.09,149.05,26.0]
[1745949065468,1.61730001,149.12,149.03,41.31028346]
[1745949065634,15.16812189,149.08,149.05,0.14216157]
[1745949065833,15.16812189,149.08,149.05,0.28432314]
[1745949066034,15.16812189,149.07,149.05,0.28432314]
[1745949066662,15.16812189,149.07,149.05,6.99332543]
[1745949067558,15.16812189,149.06,149.05,0.28432314]
[1745949068562,15.16812189,149.07,149.05,0.28432314]
[1745949069057,15.16812189,149.06,149.05,0.28432314]
[1745949069365,15.16812189,149.06,149.02,26.0]
[1745949069532,15.16812189,149.03,149.02,26.0]
[1745949070246,15.16812189,149.04,149.02,26.0]
[1745949070443,13.46,149.08,149.03,0.14216157]
[1745949070760,15.16812189,149.08,149.05,26.28432314]
[1745949070964,15.16812189,149.08,149.06,6.7087079]
[1745949071347,15.16812189,149.08,149.07,0.28432314]
[1745949071558,7.8702,149.1,149.07,0.28432314]
[1745949071858,15.16812189,149.09,149.07,0.28432314]
[1745949072062,15.16812189,149.08,149.07,0.28432314]
[1745949073740,24.20752811,149.08,149.07,0.28432314]
[1745949073940,24.20752811,149.08,149.03,26.28432314]
[1745949074141,24.20752811,149.06,149.03,26.14216157]
[1745949074357,24.20752811,149.05,149.04,0.28432314]
[1745949074662,24.20752811,149.05,149.04,0.14216157]
[1745949074963,24.20752811,149.06,149.04,0.28432314]
[1745949075138,24.20752811,149.07,149.04,0.28432314]
[1745949075336,14.57729508,149.1,149.04,6.9935344]
[1745949075540,24.20752811,149.08,149.04,6.9935344]
[1745949076351,24.20752811,149.08,149.05,0.28432314]
[1745949077254,24.20752811,149.08,149.05,6.99308809]
[1745949079951,24.20752811,149.07,149.05,6.99308809]
[1745949080344,24.20752811,149.08,149.05,6.99308809]
[1745949082668,24.20752811,149.06,149.05,0.28432314]
[1745949082971,24.20752811,149.06,149.03,32.85201806]
[1745949083151,24.20752811,149.06,149.04,0.28432314]
[1745949083860,24.20752811,149.06,149.03,6.70985649]
[1745949084049,24.20752811,149.05,149.02,6.9946424]
[1745949084369,24.20752811,149.04,149.01,46.17078744]
[1745949084762,24.20752811,149.04,149.02,0.28432314]
[1745949084969,24.20752811,149.04,149.02,0.14216157]
[1745949085266,24.20752811,149.04,149.02,0.28432314]
[1745949088568,24.20752811,149.03,149.02,0.28432314]
[1745949088763,24.20752811,149.03,149.0,6.77425027]
[1745949088961,24.20752811,149.02,149.0,6.77425027]
[1745949089261,24.20752811,149.01,149.0,26.063]
[1745949089662,24.20752811,149.01,149.0,0.063]
[1745949094273,30.9184871,149.01,149.0,0.063]
[1745949095666,21.86240702,149.01,149.0,0.063]
[1745949096250,40.51205588,149.01,149.0,0.063]
[1745949098277,42.01975588,149.01,148.99,0.063]
[1745949098583,15.15144803,149.0,148.99,0.063]
[1745949099767,13.8,149.03,148.99,0.063]
[1745949099948,15.15144803,149.01,148.99,0.063]
[1745949100148,13.8,149.03,148.99,0.063]
[1745949100366,15.15144803,149.02,148.99,0.34732314]
[1745949100572,15.15144803,149.01,148.99,0.34732314]
[1745949101471,15.15144803,149.02,148.99,0.34732314]
[1745949101670,24.22694646,149.02,148.99,0.34732314]
[1745949102363,24.22694646,149.01,148.99,7.0588232]
[1745949102558,24.22694646,149.02,148.99,7.0588232]
[1745949103280,24.22694646,149.01,148.99,7.0588232]
[1745949105674,24.22694646,149.02,148.99,7.0588232]
[1745949105974,24.22694646,149.04,148.99,48.0654193]
[1745949106954,46.50834582,149.07,148.99,48.0654193]
[1745949107152,24.22694646,149.04,148.99,48.0654193]
[1745949107368,24.22694646,149.03,148.99,48.0654193]
[1745949107780,24.22694646,149.04,148.99,48.0654193]
[1745949107978,24.22694646,149.03,148.99,48.0654193]
[1745949110280,13.8,149.07,149.01,24.5112696]
[1745949110459,24.22694646,149.06,149.02,24.5112696]
[1745949110872,24.22694646,149.06,149.02,0.28432314]
[1745949111395,24.22694646,149.06,149.04,0.28432314]
[1745949111690,24.22694646,149.05,149.03,6.71005837]
[1745949114788,13.8,149.07,149.03,6.71005837]
[1745949115093,24.22694646,149.05,149.03,6.71005837]
[1745949117867,24.22694646,149.06,149.03,6.71005837]
[1745949118583,13.8,149.07,149.03,6.71005837]
[1745949118785,24.22694646,149.06,149.03,6.71005837]
[1745949119488,24.22694646,149.05,149.03,6.71005837]
[1745949119790,24.22694646,149.06,149.03,6.71005837]
[1745949121593,24.22694646,149.05,149.03,6.71005837]
[1745949122790,6.70753573,149.09,149.03,6.71005837]
[1745949123093,24.22694646,149.07,149.03,6.71005837]
[1745949123491,15.13157273,149.07,149.03,6.71005837]
[1745949124695,15.13157273,149.06,149.03,6.71005837]
[1745949127874,15.13157273,149.05,149.02,6.71032862]
[1745949128093,15.13157273,149.03,149.02,0.28432314]
[1745949128294,15.13157273,149.03,149.02,6.99483179]
[1745949128604,15.13157273,149.05,149.02,6.99483179]
[1745949129001,24.83244886,149.08,149.02,6.99483179]
[1745949129213,6.1828,149.08,149.03,0.28432314]
[1745949129399,15.13157273,149.05,149.03,0.28432314]
[1745949129603,15.13157273,149.06,149.04,6.70960815]
[1745949130888,15.13157273,149.07,149.04,6.70960815]
[1745949131388,15.13157273,149.07,149.05,0.28432314]
[1745949131593,15.13157273,149.08,149.06,6.7087079]
[1745949132376,13.78,149.09,149.06,6.7087079]
[1745949132679,15.13157273,149.08,149.06,6.7087079]
[1745949133173,0.03,149.11,149.07,0.28432314]
[1745949133504,15.16157273,149.11,149.07,15.41589587]
[1745949133708,15.16157273,149.11,149.07,0.28432314]
[1745949133884,15.13157273,149.09,149.07,6.99239728]
[1745949134588,15.13157273,149.09,149.07,0.28432314]
[1745949135205,15.13157273,149.08,149.07,0.28432314]
[1745949135498,6.73658729,149.11,149.07,0.28432314]
[1745949135899,15.13157273,149.08,149.06,0.28432314]
[1745949136404,15.13157273,149.07,149.04,6.70958696]
[1745949136614,15.13157273,149.06,149.05,0.28432314]
[1745949136781,15.13157273,149.06,149.05,0.14216157]
[1745949137177,15.13157273,149.06,149.05,0.28432314]
[1745949137382,15.13157273,149.07,149.05,0.28432314]
[1745949139605,15.13157273,149.08,149.05,6.85115618]
[1745949140608,15.13157273,149.09,149.06,0.14216157]
[1745949140918,15.13157273,149.1,149.06,0.14216157]
[1745949141112,15.13157273,149.09,149.07,6.70825786]
[1745949141413,15.13157273,149.1,149.07,6.70825786]
[1745949142116,15.13157273,149.09,149.07,6.70825786]
[1745949142490,15.13157273,149.1,149.07,6.70825786]
[1745949143611,15.13157273,149.1,149.06,6.85070949]
[1745949143921,15.13157273,149.08,149.06,0.28432314]
[1745949144293,15.13157273,149.08,149.06,6.9929455]
[1745949146017,15.13157273,149.09,149.06,6.9929455]
[1745949147221,0.03,149.11,149.07,15.13157273]
[1745949147438,15.16157273,149.11,149.08,0.28432314]
[1745949148924,15.16157273,149.11,149.08,6.99190448]
[1745949150108,0.03,149.11,149.08,0.28432314]
[1745949150300,15.16157273,149.11,149.08,0.28432314]
[1745949150818,15.13157273,149.1,149.08,0.28432314]
[1745949151016,15.13157273,149.1,149.08,6.99212638]
[1745949151319,15.16157273,149.11,149.08,6.99212638]
[1745949152225,0.03,149.11,149.08,6.99212638]
[1745949152411,0.03,149.11,149.1,0.28432314]
[1745949153120,0.03,149.11,149.1,6.99123125]
[1745949154802,0.03,149.11,149.1,11.93088514]
[1745949155819,15.16157273,149.11,149.1,4.93965389]
[1745949157223,15.16157273,149.11,149.05,0.14216157]
[1745949157417,15.13157273,149.07,149.05,0.28432314]
[1745949158324,15.13157273,149.08,149.05,0.28432314]
[1745949161652,15.13157273,149.08,149.06,0.28432314]
[1745949162345,6.70724016,149.1,149.06,0.28432314]
[1745949162517,15.13157273,149.09,149.06,0.28432314]
[1745949163937,6.73645831,149.11,149.06,0.28432314]
[1745949164244,15.13157273,149.07,149.03,97.91589587]
[1745949164447,15.13157273,149.07,149.04,0.28432314]
[1745949164852,15.13157273,149.07,149.05,4.94464955]
[1745949165646,15.13157273,149.1,149.06,15.41589587]
[1745949166242,15.13157273,149.1,149.07,4.94464955]
[1745949167133,0.03,149.11,149.07,4.94464955]
[1745949167346,15.13157273,149.1,149.07,4.94464955]
[1745949167640,15.13157273,149.1,149.06,22.12425662]
[1745949167843,0.03,149.11,149.07,15.41589587]
[1745949168029,0.03,149.11,149.1,0.28432314]
[1745949170049,15.16157273,149.11,149.07,0.28432314]
[1745949170350,15.13157273,149.09,149.08,5.230129]
[1745949170551,15.13157273,149.1,149.08,5.230129]
[1745949170955,0.03,149.11,149.08,5.230129]
[1745949171148,15.16157273,149.11,149.08,5.230129]
[1745949171355,15.16157273,149.11,149.08,0.28432314]
[1745949171841,15.13157273,149.1,149.08,0.28432314]
[1745949172154,6.73662294,149.11,149.06,0.28432314]
[1745949172359,15.13157273,149.09,149.06,0.28432314]
[1745949172935,15.13157273,149.09,149.07,4.94820692]
[1745949174034,15.13157273,149.09,149.08,4.94820692]
[1745949174932,15.16157273,149.11,149.08,4.94820692]
[1745949175664,15.16157273,149.11,149.08,0.28432314]
[1745949177066,15.13157273,149.1,149.08,0.28432314]
[1745949177452,15.13157273,149.1,149.09,4.95549639]
[1745949179542,0.03,149.11,149.09,4.95549639]
[1745949179743,15.13157273,149.1,149.09,4.95549639]
[1745949181678,0.03,149.11,149.1,0.28432314]
[1745949182171,0.03,149.11,149.1,5.23981953]
[1745949183758,0.03,149.11,149.1,11.94672764]
[1745949184866,0.03,149.11,149.1,27.36262351]
[1745949185071,0.03,149.11,149.1,12.23105078]
[1745949186253,0.03,149.11,149.1,5.52414267]
[1745949187769,0.03,149.11,149.1,12.23105078]
[1745949187946,0.03,149.11,149.1,27.36262351]
[1745949188350,0.03,149.11,149.1,12.23105078]
[1745949189954,0.03,149.11,149.1,5.52414267]
[1745949190149,0.03,149.11,149.1,4.95549639]
[1745949190357,15.16157273,149.11,149.1,4.95549639]
[1745949190577,62.52279432,149.11,149.1,4.95549639]
[1745949190960,68.99039432,149.11,149.1,4.95549639]
[1745949191159,25.35655697,149.1,149.02,0.14216157]
[1745949191361,15.13157273,149.03,149.0,18.67081206]
[1745949191557,15.13157273,149.03,149.0,44.67081206]
[1745949191773,15.13157273,149.04,149.01,0.28432314]
[1745949191961,15.13157273,149.04,149.0,49.48054562]
[1745949192378,15.13157273,149.04,149.01,0.28432314]
[1745949192684,15.13157273,149.04,149.0,34.34897289]
[1745949192883,15.13157273,149.04,149.01,0.28432314]
[1745949193178,15.13157273,149.04,149.0,49.48054562]
[1745949193566,15.13157273,149.04,149.01,0.28432314]
[1745949193765,15.13157273,149.04,149.01,0.14216157]
[1745949193958,15.13157273,149.04,149.01,0.28432314]
[1745949194160,15.13157273,149.05,149.01,15.41589587]
[1745949194357,0.03,149.11,149.07,0.14216157]
[1745949194679,15.13157273,149.1,149.07,0.28432314]
[1745949194856,15.13157273,149.08,149.04,0.56864628]
[1745949195058,15.13157273,149.07,149.04,0.28432314]
[1745949195267,15.13157273,149.06,149.04,0.28432314]
[1745949195456,15.13157273,149.06,148.99,0.063]
[1745949195457,6.151,149.04,148.99,0.063]
[1745949195769,15.13157273,149.0,148.99,0.063]
[1745949195970,28.89157273,149.0,148.99,0.063]
[1745949196361,35.60298212,149.0,148.99,0.063]
[1745949199574,44.71888966,149.0,148.99,0.063]
[1745949202261,38.00748027,149.0,148.99,0.063]
[1745949202461,44.71888966,149.0,148.99,0.063]
[1745949205770,48.49496054,148.97,148.96,0.063]
[1745949205975,24.24748027,148.97,148.96,0.063]
[1745949208057,30.96024122,148.97,148.96,0.063]
[1745949214195,6.71243387,148.98,148.96,0.063]
[1745949214493,24.24748027,148.97,148.96,0.063]
[1745949214888,24.24748027,148.98,148.96,0.063]
[1745949215393,24.24748027,148.99,148.96,0.063]
[1745949215568,6.71159096,149.0,148.96,0.063]
[1745949215775,24.24748027,149.03,148.99,24.53180341]
[1745949216881,24.24748027,149.0,148.99,0.28432314]
[1745949217394,24.24748027,149.01,148.99,0.28432314]
[1745949217895,24.24748027,149.02,148.99,0.28432314]
[1745949218980,24.24748027,149.01,148.99,0.28432314]
[1745949221506,6.70960815,149.04,148.99,0.28432314]
[1745949221800,15.14317243,149.02,148.99,0.28432314]
[1745949222575,15.14317243,149.01,148.99,0.28432314]
[1745949222890,15.14317243,149.0,148.97,0.56864628]
[1745949224895,15.14317243,148.99,148.97,0.28432314]
[1745949225194,15.14317243,148.99,148.96,0.063]
[1745949225195,15.14317243,148.98,148.96,0.063]
[1745949227001,21.85511028,148.99,148.96,0.063]
[1745949231205,15.14317243,148.99,148.96,0.063]
[1745949232702,21.85510928,148.99,148.96,0.063]
[1745949234604,15.14317243,148.99,148.96,0.063]
[1745949237510,21.85478188,149.0,148.96,15.20617243]
[1745949238318,15.14317243,148.99,148.96,0.063]
[1745949238607,15.14317243,148.98,148.96,0.063]
[1745949239114,15.14317243,148.99,148.96,0.063]
[1745949240513,15.14317243,148.99,148.96,0.34732314]
[1745949240920,15.14317243,149.0,148.96,0.34732314]
[1745949241701,15.14317243,148.99,148.96,0.34732314]
[1745949242312,6.71156019,149.0,148.96,0.34732314]
[1745949242515,15.14317243,148.99,148.96,0.34732314]
[1745949244134,6.71156019,149.0,148.96,0.34732314]
[1745949244306,13.88,149.01,148.98,15.14317243]
[1745949244502,13.88,149.01,148.97,15.42749557]
[1745949244813,35.7342149,149.01,148.97,0.28432314]
[1745949246520,20.59104247,149.01,148.97,0.28432314]
[1745949246699,35.7342149,149.01,148.97,0.28432314]
[1745949246899,15.14317243,149.0,148.97,0.28432314]
[1745949247237,15.14317243,148.98,148.96,0.34732314]
[1745949247422,15.14317243,148.97,148.96,0.063]
[1745949248623,21.85593338,148.97,148.96,0.063]
[1745949249127,42.09478224,148.97,148.96,0.063]
[1745949252126,57.23795467,148.97,148.96,0.063]
[1745949252425,44.64964886,148.95,148.94,0.063]
[1745949252631,44.64964886,148.92,148.91,0.063]
[1745949252809,68.07113606,148.92,148.91,0.063]
[1745949260714,73.47464596,148.92,148.91,0.063]
[1745949261035,68.07113606,148.92,148.91,0.063]
[1745949261240,66.50783606,148.92,148.91,0.063]
[1745949262235,47.8581872,148.92,148.91,0.063]
[1745949262537,21.8581872,148.92,148.91,0.063]
[1745949264439,40.50783606,148.92,148.91,0.063]
[1745949267044,21.8581872,148.92,148.91,0.063]
[1745949267239,15.14317243,148.92,148.91,0.063]
[1745949275723,21.8581872,148.92,148.91,0.063]
[1745949283848,40.50783606,148.92,148.91,0.063]
[1745949284154,66.50783606,148.92,148.91,0.063]
[1745949289848,80.12783606,148.92,148.91,0.063]
[1745949291258,80.12783606,148.92,148.9,1e-08]
[1745949291259,44.933972,148.91,148.9,1e-08]
[1745949291463,44.64964886,148.88,148.87,0.03]
[1745949291659,40.79396334,148.88,148.87,1e-08]
[1745949291840,26.0,148.86,148.85,0.063]
[1745949292040,54.76317243,148.86,148.85,0.063]
[1745949293977,61.48089377,148.86,148.85,0.063]
[1745949299344,18.64964886,148.85,148.84,0.063]
[1745949299547,44.64964886,148.82,148.81,0.063]
[1745949299754,59.79282129,148.82,148.81,0.063]
[1745949300549,37.13202471,148.86,148.81,0.063]
[1745949300754,15.14317243,148.83,148.81,0.063]
[1745949300955,15.14317243,148.82,148.81,0.063]
[1745949302145,21.86269937,148.82,148.81,0.063]
[1745949303139,47.86269937,148.82,148.81,0.063]
[1745949305175,21.86269937,148.82,148.81,0.063]
[1745949305349,47.86269937,148.82,148.81,0.063]
[1745949306081,41.14317243,148.82,148.81,0.063]
[1745949306291,15.14317243,148.82,148.81,0.063]
[1745949306889,21.86269937,148.82,148.81,0.063]
[1745949307468,15.14317243,148.82,148.81,0.063]
[1745949317895,21.86269937,148.82,148.81,0.063]
[1745949319479,15.14317243,148.82,148.81,0.063]
[1745949319999,28.66317243,148.82,148.81,0.063]
[1745949325098,13.52,148.82,148.81,0.063]
[1745949326083,13.52,148.82,148.81,9.77902493]
[1745949326283,9.71602493,148.86,148.81,10.06334807]
[1745949326607,6.71730106,148.87,148.83,9.71602493]
[1745949326608,23.23602493,148.87,148.83,9.71602493]
[1745949327193,23.23602493,148.87,148.83,16.43504063]
[1745949327409,13.52,148.87,148.85,9.71602493]
[1745949327990,13.52,148.87,148.86,9.71602493]
[1745949329494,13.52,148.87,148.85,9.71602493]
[1745949329794,13.52,148.87,148.85,15.16958952]
[1745949330807,13.52,148.87,148.85,21.88772527]
[1745949330991,13.52,148.87,148.86,15.16958952]
[1745949331192,12.56313571,148.88,148.86,15.16958952]
[1745949331395,12.56313571,148.88,148.87,15.45391266]
[1745949332116,0.063,148.9,148.87,15.45391266]
[1745949332406,0.063,148.9,148.89,15.16958952]
[1745949332912,0.063,148.9,148.88,15.16958952]
[1745949334018,0.063,148.9,148.87,15.45391266]
[1745949334689,0.063,148.9,148.86,22.79078952]
[1745949334897,15.16958952,148.89,148.85,15.45391266]
[1745949335430,15.16958952,148.89,148.82,116.3671]
[1745949335734,15.16958952,148.88,148.84,15.16958952]
[1745949336610,21.88615587,148.89,148.85,15.16958952]
[1745949337908,0.063,148.9,148.86,15.16958952]
[1745949338719,21.94855774,148.9,148.86,15.16958952]
[1745949339022,21.94855774,148.9,148.85,15.45391266]
[1745949339624,15.16958952,148.89,148.85,15.45391266]
[1745949345131,21.94855774,148.9,148.85,15.45391266]
[1745949345932,21.94855774,148.9,148.85,22.1720692]
[1745949348334,21.94855774,148.9,148.86,15.16958952]
[1745949348537,6.77896822,148.9,148.86,15.16958952]
[1745949348723,21.94855774,148.9,148.86,15.16958952]
[1745949349035,6.77896822,148.9,148.86,15.16958952]
[1745949349334,15.23258952,148.9,148.86,15.16958952]
[1745949350032,21.94850695,148.9,148.86,15.16958952]
[1745949351441,6.77891743,148.9,148.86,15.16958952]
[1745949351647,0.063,148.9,148.86,15.16958952]
[1745949353036,15.23258952,148.9,148.86,15.16958952]
[1745949353220,21.94860909,148.9,148.86,15.16958952]
[1745949357545,16.48724724,148.9,148.86,9.70822767]
[1745949359531,9.77122767,148.9,148.86,9.70822767]
[1745949360230,0.063,148.9,148.87,9.70822767]
[1745949360534,0.063,148.9,148.88,9.70822767]
[1745949362334,0.063,148.9,148.88,16.42504048]
[1745949362649,0.063,148.9,148.88,9.70822767]
[1745949363252,9.77122767,148.9,148.86,0.14216157]
[1745949363426,16.48728252,148.9,148.86,9.85038924]
[1745949363827,16.48728252,148.9,148.86,0.14216157]
[1745949364043,16.48728252,148.9,148.86,9.85038924]
[1745949364654,6.77905485,148.9,148.86,9.85038924]
[1745949365654,6.77905485,148.9,148.86,15.45227206]
[1745949366155,0.063,148.9,148.87,15.16794892]
[1745949369258,0.063,148.9,148.88,15.16794892]
[1745949369558,0.063,148.9,148.89,15.16794892]
[1745949371439,0.063,148.9,148.89,22.16863984]
[1745949372261,0.063,148.9,148.89,22.45296298]
[1745949372436,0.063,148.9,148.89,37.6209119]
[1745949374570,0.063,148.9,148.89,7.28501406]
[1745949374871,0.063,148.9,148.89,22.45296298]
[1745949380572,0.063,148.9,148.89,22.16863984]
[1745949384578,0.063,148.9,148.89,37.6209119]
[1745949384766,0.063,148.9,148.89,63.6209119]
[1745949385078,0.063,148.9,148.89,82.27056076]
[1745949385273,0.063,148.94,148.93,15.45227206]
[1745949386653,0.063,148.94,148.93,22.16683594]
[1745949397279,0.063,148.94,148.93,15.45227206]
[1745949397663,0.063,148.94,148.93,22.16683594]
[1745949401191,0.063,148.94,148.93,22.45115908]
[1745949401483,0.063,148.94,148.93,106.29357678]
[1745949401693,0.063,148.94,148.93,121.4615257]
[1745949402276,0.063,148.95,148.94,0.56864628]
[1745949402478,0.063,148.95,148.94,56.90454412]
[1745949402692,0.063,148.95,148.94,41.7365952]
[1745949403591,0.063,148.95,148.94,48.45070826]
[1745949404598,0.063,148.95,148.94,130.95070826]
[1745949410705,0.063,148.95,148.94,104.38206198]
[1745949411496,0.063,148.95,148.94,97.66794892]
[1745949411686,0.063,148.95,148.94,97.95227206]
[1745949411881,0.063,148.95,148.94,104.38206198]
[1745949412086,0.063,148.95,148.94,89.21411306]
[1745949412288,0.063,148.95,148.94,104.52422355]
[1745949412493,0.063,148.95,148.94,104.66638512]
[1745949413114,0.063,148.95,148.93,15.16794892]
[1745949413481,0.063,148.95,148.92,6.99919777]
[1745949413686,0.063,148.95,148.91,6.71541467]
[1745949413990,0.063,148.95,148.92,15.16794892]
[1745949415091,0.063,148.95,148.9,32.71577803]
[1745949415092,15.23094892,148.95,148.9,32.71577803]
[1745949415293,15.23094892,148.95,148.91,15.16794892]
[1745949415901,0.063,148.95,148.92,15.16794892]
[1745949417109,0.063,148.95,148.91,15.45227206]
[1745949417495,0.063,148.95,148.92,15.16794892]
[1745949418606,0.063,148.95,148.93,15.16794892]
[1745949420305,0.063,148.95,148.93,6.71453184]
[1745949420509,0.063,148.95,148.94,15.16794892]
[1745949423402,0.063,148.95,148.94,21.88206198]
[1745949424005,0.063,148.95,148.94,22.16638512]
[1745949424199,0.063,148.95,148.94,22.45070826]
[1745949425117,0.063,148.95,148.94,27.41302348]
[1745949425790,0.063,148.95,148.94,22.45070826]
[1745949425997,0.063,148.95,148.94,27.4131]
[1745949428003,0.063,148.95,148.94,109.9131]
[1745949431418,0.063,148.95,148.94,109.34445372]
[1745949431998,0.063,148.95,148.94,109.48661529]
[1745949432695,0.063,148.95,148.94,102.9146638]
[1745949433119,0.063,148.95,148.94,102.63034066]
[1745949433421,0.063,148.95,148.94,102.77250223]
[1745949433808,0.063,148.95,148.94,109.48661529]
[1745949434008,0.063,148.95,148.94,27.12877686]
[1745949435221,0.063,148.95,148.94,27.4131]
[1745949439428,0.063,148.95,148.94,27.12877686]
[1745949441617,0.063,148.95,148.94,27.4131]
[1745949443323,1e-08,148.95,148.94,143.73069778]
[1745949446033,1e-08,148.95,148.94,128.56274886]
[1745949448152,1e-08,148.95,148.94,143.73069778]
[1745949449830,1e-08,148.95,148.94,128.56274886]
[1745949450630,1e-08,148.95,148.94,143.73069778]
[1745949451345,0.063,148.96,148.95,0.56864628]
[1745949451648,0.063,148.96,148.95,56.90454412]
[1745949452230,0.063,148.96,148.95,61.86693586]
[1745949452626,0.063,148.96,148.95,68.58059816]
[1745949454453,0.063,148.96,148.95,151.08059816]
[1745949456660,0.03,148.99,148.98,26.56864628]
[1745949456839,0.063,149.0,148.99,0.28432314]
[1745949457162,0.063,149.0,148.99,15.45227206]
[1745949458035,0.063,149.0,148.99,27.12652365]
[1745949459439,0.063,149.0,148.99,11.95857473]
[1745949459759,0.063,149.0,148.99,26.84220051]
[1745949459963,0.063,149.0,148.99,27.12652365]
[1745949460349,0.063,149.0,148.99,26.98436208]
[1745949466169,0.063,149.0,148.99,27.12652365]
[1745949468379,0.063,149.0,148.99,4.96239174]
[1745949468546,15.23094892,149.0,148.99,4.96239174]
[1745949468752,23.47474892,149.0,148.91,82.5]
[1745949468949,8.3068,149.0,148.92,6.71501477]
[1745949469259,15.16794892,148.97,148.93,15.16794892]
[1745949469953,21.88090507,148.97,148.93,15.16794892]
[1745949471284,21.88090507,148.97,148.93,0.14216157]
[1745949471462,21.88090507,148.97,148.93,0.28432314]
[1745949472673,21.88090507,148.97,148.93,15.45227206]
[1745949473972,21.88090507,148.97,148.89,15.19794892]
[1745949474176,15.16794892,148.96,148.91,15.16794892]
[1745949475064,21.88133242,148.96,148.91,15.16794892]
[1745949475263,21.88133242,148.96,148.92,15.16794892]
[1745949475466,15.16794892,148.97,148.93,0.28432314]
[1745949475666,13.42,148.99,148.94,15.16794892]
[1745949475865,15.16794892,148.98,148.94,15.16794892]
[1745949476886,21.88040183,148.98,148.93,15.45227206]
[1745949478866,21.88083682,148.97,148.93,15.45227206]
[1745949479068,21.88083682,148.97,148.93,0.28432314]
[1745949482083,13.42,148.99,148.94,15.16794892]
[1745949482388,15.16794892,148.98,148.94,15.16794892]
[1745949484189,21.88070777,148.98,148.93,15.45227206]
[1745949487679,21.88070777,148.98,148.93,22.16673001]
[1745949487891,21.88070777,148.98,148.94,15.16794892]
[1745949488684,35.30000898,148.99,148.94,15.16794892]
[1745949489978,15.16794892,148.98,148.94,15.16794892]
[1745949491192,21.88039437,148.98,148.93,22.16673001]
[1745949491900,21.88039437,148.98,148.94,15.16794892]
[1745949492203,21.88039437,148.98,148.93,22.16673001]
[1745949492993,15.16794892,148.97,148.93,22.16673001]
[1745949494299,20.13205403,148.99,148.93,22.16673001]
[1745949494595,13.42,148.99,148.97,15.16794892]
[1745949494903,0.063,149.0,148.97,15.16794892]
[1745949495203,0.063,149.0,148.98,15.16794892]
[1745949496474,0.063,149.0,148.98,21.88019597]
[1745949500795,0.063,149.0,148.98,15.16794892]
[1745949502098,0.063,149.0,148.98,21.88021511]
[1745949502399,0.063,149.0,148.99,15.16794892]
[1745949502605,0.063,149.0,148.99,15.45227206]
[1745949503802,0.063,149.0,148.99,22.16413191]
[1745949504293,0.063,149.0,148.98,15.16794892]